[Event "Titled Tuesday Blitz February 14 Late 2023"]
[White "Pasti, Aron"]
[Black "Makarian, Rudik"]
[WhiteFideId "785857"]
[BlackFideId "44105681"]
[WhiteElo "2361"]
[BlackElo "2545"]
[Result "1/2-1/2"]
[Round "01"]
[TimeControl "180+2"]
[Date "2023.02.14"]
[WhiteClock "0:00:09"]
[BlackClock "0:00:14"]

1. e4 {[%clk 0:02:56]}  c5 {[%clk 0:02:27]} 2. Nf3 {[%clk 0:02:55]}  Nc6 {[%clk 0:02:27]} 3. d4 {[%clk 0:02:56]}  cxd4 {[%clk 0:02:28]} 4. Nxd4 {[%clk 0:02:57]}  e6 {[%clk 0:02:27]} 5. Nc3 {[%clk 0:02:56]}  Qc7 {[%clk 0:02:24]} 6. Be3 {[%clk 0:02:54]}  a6 {[%clk 0:01:47]} 7. g4 {[%clk 0:02:51]}  h6 {[%clk 0:01:46]} 8. f4 {[%clk 0:02:48]}  b5 {[%clk 0:01:42]} 9. Bg2 {[%clk 0:02:48]}  Bb7 {[%clk 0:01:42]} 10. Qd2 {[%clk 0:02:43]}  Nf6 {[%clk 0:01:36]} 11. g5 {[%clk 0:02:19]}  Ng4 {[%clk 0:01:20]} 12. Bg1 {[%clk 0:02:17]}  hxg5 {[%clk 0:01:19]} 13. fxg5 {[%clk 0:02:14]}  Nxd4 {[%clk 0:01:04]} 14. Bxd4 {[%clk 0:02:07]}  Bc5 {[%clk 0:00:57]} 15. O-O-O {[%clk 0:02:06]}  Rc8 {[%clk 0:00:54]} 16. Bxc5 {[%clk 0:02:06]}  Qxc5 {[%clk 0:00:47]} 17. Qxd7+ {[%clk 0:02:03]}  Kf8 {[%clk 0:00:48]} 18. Qxb7 {[%clk 0:02:00]}  b4 {[%clk 0:00:41]} 19. Rhf1 {[%clk 0:01:40]}  Ne5 {[%clk 0:00:41]} 20. Rd7 {[%clk 0:01:40]}  Nxd7 {[%clk 0:00:20]} 21. Qxd7 {[%clk 0:01:40]}  Kg8 {[%clk 0:00:14]} 22. Qxf7+ {[%clk 0:01:34]}  Kh7 {[%clk 0:00:15]} 23. Qh5+ {[%clk 0:00:51]}  Kg8 {[%clk 0:00:15]} 24. Qf7+ {[%clk 0:00:52]}  Kh7 {[%clk 0:00:15]} 25. g6+ {[%clk 0:00:14]}  Kh6 {[%clk 0:00:15]} 26. Qf4+ {[%clk 0:00:13]}  Qg5 {[%clk 0:00:13]} 27. Ne2 {[%clk 0:00:08]}  Rcf8 {[%clk 0:00:12]} 28. Qxg5+ {[%clk 0:00:08]}  Kxg5 {[%clk 0:00:13]} 29. Rxf8 {[%clk 0:00:07]}  Rxf8 {[%clk 0:00:14]} 30. Ng3 {[%clk 0:00:05]}  Rf2 {[%clk 0:00:14]} 31. Bf1 {[%clk 0:00:05]}  Rxh2 {[%clk 0:00:13]} 32. Bxa6 {[%clk 0:00:05]}  Kf4 {[%clk 0:00:13]} 33. Nf1 {[%clk 0:00:04]}  Rf2 {[%clk 0:00:10]} 34. a4 {[%clk 0:00:04]}  bxa3 {[%clk 0:00:11]} 35. bxa3 {[%clk 0:00:05]}  Kxe4 {[%clk 0:00:12]} 36. Bd3+ {[%clk 0:00:05]}  Kd4 {[%clk 0:00:12]} 37. a4 {[%clk 0:00:05]}  Kc3 {[%clk 0:00:11]} 38. a5 {[%clk 0:00:06]}  Rf4 {[%clk 0:00:08]} 39. Ne3 {[%clk 0:00:05]}  Ra4 {[%clk 0:00:09]} 40. Nd1+ {[%clk 0:00:04]}  Kd4 {[%clk 0:00:09]} 41. a6 {[%clk 0:00:04]}  e5 {[%clk 0:00:10]} 42. Kd2 {[%clk 0:00:03]}  e4 {[%clk 0:00:10]} 43. Be2 {[%clk 0:00:03]}  Ra3 {[%clk 0:00:09]} 44. Nb2 {[%clk 0:00:02]}  e3+ {[%clk 0:00:09]} 45. Ke1 {[%clk 0:00:02]}  Ra1+ {[%clk 0:00:10]} 46. Nd1 {[%clk 0:00:03]}  Ra2 {[%clk 0:00:10]} 47. Bd3 {[%clk 0:00:04]}  Ra5 {[%clk 0:00:07]} 48. Ke2 {[%clk 0:00:04]}  Rg5 {[%clk 0:00:07]} 49. Nxe3 {[%clk 0:00:04]}  Re5 {[%clk 0:00:07]} 50. Kd2 {[%clk 0:00:03]}  Ra5 {[%clk 0:00:04]} 51. Nd1 {[%clk 0:00:04]}  Ra3 {[%clk 0:00:04]} 52. Nb2 {[%clk 0:00:04]}  Ra5 {[%clk 0:00:04]} 53. c3+ {[%clk 0:00:03]}  Kc5 {[%clk 0:00:05]} 54. Kc2 {[%clk 0:00:04]}  Ra3 {[%clk 0:00:05]} 55. Nd1 {[%clk 0:00:04]}  Ra2+ {[%clk 0:00:06]} 56. Kb3 {[%clk 0:00:04]}  Ra1 {[%clk 0:00:06]} 57. Nb2 {[%clk 0:00:04]}  Ra5 {[%clk 0:00:05]} 58. Na4+ {[%clk 0:00:04]}  Kc6 {[%clk 0:00:05]} 59. Kb4 {[%clk 0:00:05]}  Re5 {[%clk 0:00:05]} 60. Bc4 {[%clk 0:00:05]}  Kc7 {[%clk 0:00:04]} 61. Bb5 {[%clk 0:00:05]}  Re4+ {[%clk 0:00:04]} 62. c4 {[%clk 0:00:06]}  Re1 {[%clk 0:00:04]} 63. Ka5 {[%clk 0:00:06]}  Kb8 {[%clk 0:00:04]} 64. Kb6 {[%clk 0:00:06]}  Re7 {[%clk 0:00:04]} 65. Bc6 {[%clk 0:00:06]}  Rb7+ {[%clk 0:00:04]} 66. Kc5 {[%clk 0:00:06]}  Rb1 {[%clk 0:00:03]} 67. Bb5 {[%clk 0:00:07]}  Ka7 {[%clk 0:00:04]} 68. Nc3 {[%clk 0:00:07]}  Rg1 {[%clk 0:00:04]} 69. Be8 {[%clk 0:00:06]}  Kxa6 {[%clk 0:00:04]} 70. Bf7 {[%clk 0:00:06]}  Kb7 {[%clk 0:00:04]} 71. Ne4 {[%clk 0:00:07]}  Kc7 {[%clk 0:00:04]} 72. Kd5 {[%clk 0:00:06]}  Re1 {[%clk 0:00:04]} 73. c5 {[%clk 0:00:05]}  Kd7 {[%clk 0:00:04]} 74. Nd6 {[%clk 0:00:05]}  Rd1+ {[%clk 0:00:04]} 75. Ke5 {[%clk 0:00:05]}  Re1+ {[%clk 0:00:03]} 76. Kf5 {[%clk 0:00:05]}  Rf1+ {[%clk 0:00:04]} 77. Ke4 {[%clk 0:00:04]}  Re1+ {[%clk 0:00:04]} 78. Kd3 {[%clk 0:00:05]}  Rd1+ {[%clk 0:00:05]} 79. Kc2 {[%clk 0:00:05]}  Rxd6 {[%clk 0:00:05]} 80. cxd6 {[%clk 0:00:05]}  Kxd6 {[%clk 0:00:06]} 81. Kd3 {[%clk 0:00:05]}  Ke7 {[%clk 0:00:07]} 82. Ke4 {[%clk 0:00:06]}  Kf8 {[%clk 0:00:08]} 83. Ke5 {[%clk 0:00:06]}  Ke7 {[%clk 0:00:08]} 84. Be6 {[%clk 0:00:07]}  Kf8 {[%clk 0:00:09]} 85. Kd6 {[%clk 0:00:07]}  Ke8 {[%clk 0:00:10]} 86. Bd5 {[%clk 0:00:08]}  Kf8 {[%clk 0:00:11]} 87. Ke6 {[%clk 0:00:08]}  Ke8 {[%clk 0:00:12]} 88. Ke5 {[%clk 0:00:08]}  Kf8 {[%clk 0:00:13]} 89. Bf7 {[%clk 0:00:08]}  Ke7 {[%clk 0:00:13]} 90. Kd5 {[%clk 0:00:09]}  Kf8 {[%clk 0:00:14]} 91. Ke6 {[%clk 0:00:09]} 1/2-1/2


[Site "https://www.chess.com"]

[Event "Titled Tuesday Blitz February 14 Late 2023"]
[White "Urazayev, Arystanbek"]
[Black "Baches Garcia, Guillermo"]
[WhiteFideId "13709810"]
[BlackFideId "2209764"]
[WhiteElo "2460"]
[BlackElo "2327"]
[Result "0-1"]
[Round "01"]
[TimeControl "180+2"]
[Date "2023.02.14"]
[WhiteClock "0:01:09"]
[BlackClock "0:00:39"]

1. e4 {[%clk 0:03:00]}  c5 {[%clk 0:03:00]} 2. Nf3 {[%clk 0:03:01]}  d6 {[%clk 0:03:00]} 3. d4 {[%clk 0:03:02]}  cxd4 {[%clk 0:03:01]} 4. Nxd4 {[%clk 0:03:02]}  Nf6 {[%clk 0:03:01]} 5. Nc3 {[%clk 0:03:03]}  Nc6 {[%clk 0:03:02]} 6. Bg5 {[%clk 0:03:03]}  e6 {[%clk 0:03:02]} 7. Qd2 {[%clk 0:03:03]}  h6 {[%clk 0:03:03]} 8. Nxc6 {[%clk 0:03:02]}  bxc6 {[%clk 0:03:02]} 9. Bf4 {[%clk 0:03:02]}  e5 {[%clk 0:03:00]} 10. Bg3 {[%clk 0:03:02]}  Nh5 {[%clk 0:02:56]} 11. Bc4 {[%clk 0:03:00]}  Be7 {[%clk 0:02:54]} 12. O-O {[%clk 0:03:00]}  O-O {[%clk 0:02:54]} 13. Rad1 {[%clk 0:02:59]}  Be6 {[%clk 0:02:49]} 14. Bxe6 {[%clk 0:02:59]}  fxe6 {[%clk 0:02:50]} 15. Qe2 {[%clk 0:02:54]}  Nxg3 {[%clk 0:02:49]} 16. hxg3 {[%clk 0:02:55]}  Rb8 {[%clk 0:02:42]} 17. Na4 {[%clk 0:02:55]}  Qe8 {[%clk 0:02:28]} 18. c4 {[%clk 0:02:52]}  d5 {[%clk 0:02:24]} 19. b3 {[%clk 0:02:47]}  d4 {[%clk 0:02:18]} 20. Nb2 {[%clk 0:02:47]}  c5 {[%clk 0:02:15]} 21. Nd3 {[%clk 0:02:48]}  Bd6 {[%clk 0:02:15]} 22. Qg4 {[%clk 0:02:46]}  Rf6 {[%clk 0:02:10]} 23. f4 {[%clk 0:02:37]}  Rg6 {[%clk 0:02:06]} 24. Qf3 {[%clk 0:02:38]}  exf4 {[%clk 0:02:00]} 25. gxf4 {[%clk 0:02:38]}  e5 {[%clk 0:01:57]} 26. fxe5 {[%clk 0:02:25]}  Bxe5 {[%clk 0:01:52]} 27. Qf5 {[%clk 0:02:24]}  Rg5 {[%clk 0:01:39]} 28. Qf3 {[%clk 0:02:11]}  Bg3 {[%clk 0:01:30]} 29. e5 {[%clk 0:02:02]}  Bxe5 {[%clk 0:01:26]} 30. Rde1 {[%clk 0:02:01]}  Kh8 {[%clk 0:01:10]} 31. Qd5 {[%clk 0:02:01]}  Bh2+ {[%clk 0:00:49]} 32. Kh1 {[%clk 0:01:11]}  Qh5 {[%clk 0:00:45]} 33. Qf3 {[%clk 0:01:10]}  Bg3+ {[%clk 0:00:39]} 34. Kg1 {[%clk 0:01:09]}  Qh2# {[%clk 0:00:39]} 0-1


[Site "https://www.chess.com"]

[Event "Titled Tuesday Blitz February 14 Late 2023"]
[White "Hajiyev, Kanan"]
[Black "Kravtsiv, Martyn"]
[WhiteFideId "13404148"]
[BlackFideId "14113147"]
[WhiteElo "2197"]
[BlackElo "2598"]
[Result "1-0"]
[Round "01"]
[TimeControl "180+2"]
[Date "2023.02.14"]
[WhiteClock "0:00:05"]
[BlackClock "0:00:02"]

1. d4 {[%clk 0:02:59]}  d5 {[%clk 0:02:57]} 2. c4 {[%clk 0:02:55]}  e6 {[%clk 0:02:58]} 3. cxd5 {[%clk 0:02:56]}  exd5 {[%clk 0:02:58]} 4. Nc3 {[%clk 0:02:57]}  c6 {[%clk 0:02:54]} 5. Qc2 {[%clk 0:02:56]}  g6 {[%clk 0:02:52]} 6. Bf4 {[%clk 0:02:45]}  Bf5 {[%clk 0:02:46]} 7. Qd2 {[%clk 0:02:46]}  Nf6 {[%clk 0:02:42]} 8. e3 {[%clk 0:02:44]}  Bd6 {[%clk 0:02:36]} 9. Bxd6 {[%clk 0:02:39]}  Qxd6 {[%clk 0:02:37]} 10. Nf3 {[%clk 0:02:38]}  O-O {[%clk 0:02:36]} 11. Bd3 {[%clk 0:02:39]}  Bxd3 {[%clk 0:02:35]} 12. Qxd3 {[%clk 0:02:40]}  Nbd7 {[%clk 0:02:35]} 13. O-O {[%clk 0:02:39]}  Rfe8 {[%clk 0:02:35]} 14. Rab1 {[%clk 0:02:38]}  a5 {[%clk 0:02:33]} 15. Qc2 {[%clk 0:02:37]}  b5 {[%clk 0:02:26]} 16. Rbc1 {[%clk 0:02:30]}  a4 {[%clk 0:02:23]} 17. Ne2 {[%clk 0:02:23]}  Rec8 {[%clk 0:02:06]} 18. Nf4 {[%clk 0:02:21]}  Ne4 {[%clk 0:02:06]} 19. Nd2 {[%clk 0:02:18]}  Ng5 {[%clk 0:01:54]} 20. Qd1 {[%clk 0:01:55]}  Nb6 {[%clk 0:01:48]} 21. Qg4 {[%clk 0:01:51]}  Qe7 {[%clk 0:01:39]} 22. Rc2 {[%clk 0:01:38]}  Nc4 {[%clk 0:01:08]} 23. Rfc1 {[%clk 0:01:14]}  Rd8 {[%clk 0:00:55]} 24. h4 {[%clk 0:01:03]}  Ne4 {[%clk 0:00:52]} 25. Nxe4 {[%clk 0:00:56]}  Qxe4 {[%clk 0:00:51]} 26. Qg5 {[%clk 0:00:49]}  Re8 {[%clk 0:00:43]} 27. Nh5 {[%clk 0:00:35]}  Qe6 {[%clk 0:00:37]} 28. Nf6+ {[%clk 0:00:34]}  Kg7 {[%clk 0:00:38]} 29. Nxe8+ {[%clk 0:00:34]}  Rxe8 {[%clk 0:00:36]} 30. b3 {[%clk 0:00:34]}  axb3 {[%clk 0:00:35]} 31. axb3 {[%clk 0:00:35]}  Na5 {[%clk 0:00:35]} 32. h5 {[%clk 0:00:32]}  Rc8 {[%clk 0:00:25]} 33. h6+ {[%clk 0:00:31]}  Kf8 {[%clk 0:00:20]} 34. b4 {[%clk 0:00:27]}  Nc4 {[%clk 0:00:19]} 35. Ra1 {[%clk 0:00:27]}  Qe7 {[%clk 0:00:17]} 36. Qg4 {[%clk 0:00:24]}  Re8 {[%clk 0:00:12]} 37. Rca2 {[%clk 0:00:17]}  Qxb4 {[%clk 0:00:10]} 38. Ra7 {[%clk 0:00:13]}  Qd6 {[%clk 0:00:08]} 39. Rd7 {[%clk 0:00:12]}  Qe6 {[%clk 0:00:08]} 40. Qxe6 {[%clk 0:00:05]}  Rxe6 {[%clk 0:00:08]} 41. Raa7 {[%clk 0:00:06]}  Nd6 {[%clk 0:00:07]} 42. Rac7 {[%clk 0:00:05]}  b4 {[%clk 0:00:04]} 43. Rxc6 {[%clk 0:00:05]}  g5 {[%clk 0:00:02]} 44. Rdxd6 {[%clk 0:00:05]} 1-0


[Site "https://www.chess.com"]

[Event "Titled Tuesday Blitz February 14 Late 2023"]
[White "Kochetov, Andrey"]
[Black "Kozak, Adam"]
[WhiteFideId "24130532"]
[BlackFideId "753246"]
[WhiteElo "2165"]
[BlackElo "2572"]
[Result "0-1"]
[Round "01"]
[TimeControl "180+2"]
[Date "2023.02.14"]
[WhiteClock "0:00:11"]
[BlackClock "0:00:58"]

1. e4 {[%clk 0:03:00]}  b5 {[%clk 0:02:57]} 2. Bxb5 {[%clk 0:02:53]}  Bb7 {[%clk 0:02:57]} 3. Nc3 {[%clk 0:02:53]}  f5 {[%clk 0:02:57]} 4. exf5 {[%clk 0:02:40]}  Bxg2 {[%clk 0:02:54]} 5. Qh5+ {[%clk 0:02:40]}  g6 {[%clk 0:02:54]} 6. fxg6 {[%clk 0:02:41]}  Bg7 {[%clk 0:02:54]} 7. gxh7+ {[%clk 0:02:15]}  Kf8 {[%clk 0:02:54]} 8. hxg8=Q+ {[%clk 0:02:12]}  Kxg8 {[%clk 0:02:55]} 9. Qg5 {[%clk 0:01:56]}  Bxh1 {[%clk 0:02:43]} 10. Bc4+ {[%clk 0:01:49]}  Kf8 {[%clk 0:02:37]} 11. f3 {[%clk 0:01:45]}  Nc6 {[%clk 0:02:23]} 12. Qf5+ {[%clk 0:01:19]}  Bf6 {[%clk 0:02:18]} 13. d4 {[%clk 0:01:18]}  Qe8 {[%clk 0:01:21]} 14. Qg4 {[%clk 0:01:02]}  Qh5 {[%clk 0:01:13]} 15. Qxd7 {[%clk 0:01:02]}  Nxd4 {[%clk 0:01:09]} 16. Bd3 {[%clk 0:00:20]}  Qh4+ {[%clk 0:01:01]} 17. Kd1 {[%clk 0:00:16]}  Qxh2 {[%clk 0:01:00]} 18. Be3 {[%clk 0:00:16]}  Nxf3 {[%clk 0:00:58]} 19. Qd5 {[%clk 0:00:11]}  Nxg1 {[%clk 0:00:58]} 0-1


[Site "https://www.chess.com"]

[Event "Titled Tuesday Blitz February 14 Late 2023"]
[White "Melkumyan, Hrant"]
[Black "Kavutskiy, Konstantin"]
[WhiteFideId "13302485"]
[BlackFideId "2026384"]
[WhiteElo "2645"]
[BlackElo "2414"]
[Result "1-0"]
[Round "01"]
[TimeControl "180+2"]
[Date "2023.02.14"]
[WhiteClock "0:01:50"]
[BlackClock "0:00:14"]

1. Nf3 {[%clk 0:03:00]}  Nf6 {[%clk 0:02:59]} 2. c4 {[%clk 0:03:00]}  g6 {[%clk 0:03:00]} 3. Nc3 {[%clk 0:03:00]}  Bg7 {[%clk 0:02:58]} 4. e4 {[%clk 0:03:01]}  d6 {[%clk 0:02:58]} 5. d4 {[%clk 0:03:01]}  O-O {[%clk 0:02:58]} 6. Be2 {[%clk 0:03:02]}  e5 {[%clk 0:02:59]} 7. O-O {[%clk 0:03:02]}  h6 {[%clk 0:02:59]} 8. Re1 {[%clk 0:03:00]}  Nbd7 {[%clk 0:02:58]} 9. Rb1 {[%clk 0:02:55]}  a5 {[%clk 0:02:57]} 10. b3 {[%clk 0:02:52]}  b6 {[%clk 0:02:57]} 11. dxe5 {[%clk 0:02:46]}  dxe5 {[%clk 0:02:54]} 12. Ba3 {[%clk 0:02:46]}  Re8 {[%clk 0:02:50]} 13. Qc2 {[%clk 0:02:44]}  Bf8 {[%clk 0:02:47]} 14. Bb2 {[%clk 0:02:37]}  Bc5 {[%clk 0:02:23]} 15. Rbd1 {[%clk 0:02:35]}  Qe7 {[%clk 0:02:06]} 16. Nb5 {[%clk 0:02:29]}  Ng4 {[%clk 0:01:35]} 17. Rf1 {[%clk 0:02:24]}  Ndf6 {[%clk 0:01:01]} 18. h3 {[%clk 0:02:14]}  c6 {[%clk 0:01:01]} 19. hxg4 {[%clk 0:02:06]}  cxb5 {[%clk 0:01:01]} 20. Nxe5 {[%clk 0:02:07]}  Bb7 {[%clk 0:00:52]} 21. cxb5 {[%clk 0:01:56]}  Nxe4 {[%clk 0:00:45]} 22. Bc4 {[%clk 0:01:51]}  Kh7 {[%clk 0:00:14]} 23. Rd7 {[%clk 0:01:50]} 1-0


[Site "https://www.chess.com"]

[Event "Titled Tuesday Blitz February 14 Late 2023"]
[White "Koutlas, Nikolaos"]
[Black "Madaminov, Mukhiddin"]
[WhiteFideId "25827138"]
[BlackFideId "14210703"]
[WhiteElo "2341"]
[BlackElo "2422"]
[Result "0-1"]
[Round "01"]
[TimeControl "180+2"]
[Date "2023.02.14"]
[WhiteClock "0:00:03"]
[BlackClock "0:00:10"]

1. c4 {[%clk 0:02:52]}  g6 {[%clk 0:02:59]} 2. Nc3 {[%clk 0:02:49]}  c5 {[%clk 0:02:59]} 3. g3 {[%clk 0:02:50]}  Bg7 {[%clk 0:02:58]} 4. Bg2 {[%clk 0:02:51]}  Nc6 {[%clk 0:02:58]} 5. Nf3 {[%clk 0:02:50]}  e6 {[%clk 0:02:56]} 6. O-O {[%clk 0:02:50]}  Nge7 {[%clk 0:02:56]} 7. e3 {[%clk 0:02:50]}  O-O {[%clk 0:02:50]} 8. d4 {[%clk 0:02:49]}  cxd4 {[%clk 0:02:51]} 9. Nxd4 {[%clk 0:02:48]}  a6 {[%clk 0:02:19]} 10. b3 {[%clk 0:02:45]}  Nxd4 {[%clk 0:02:06]} 11. exd4 {[%clk 0:02:44]}  d5 {[%clk 0:02:07]} 12. cxd5 {[%clk 0:02:15]}  Nxd5 {[%clk 0:02:04]} 13. Nxd5 {[%clk 0:02:14]}  exd5 {[%clk 0:02:05]} 14. Re1 {[%clk 0:02:14]}  Be6 {[%clk 0:02:02]} 15. Be3 {[%clk 0:02:00]}  Qa5 {[%clk 0:01:59]} 16. a3 {[%clk 0:01:48]}  Rac8 {[%clk 0:01:58]} 17. b4 {[%clk 0:01:47]}  Qc7 {[%clk 0:01:44]} 18. Rc1 {[%clk 0:01:40]}  Qd7 {[%clk 0:01:44]} 19. Qd3 {[%clk 0:01:31]}  Rc4 {[%clk 0:01:36]} 20. h3 {[%clk 0:01:15]}  Bf5 {[%clk 0:01:15]} 21. Qf1 {[%clk 0:01:12]}  Rfc8 {[%clk 0:01:03]} 22. g4 {[%clk 0:01:08]}  Bc2 {[%clk 0:00:56]} 23. Qe2 {[%clk 0:01:04]}  Ba4 {[%clk 0:00:49]} 24. Qf3 {[%clk 0:00:53]}  Bc6 {[%clk 0:00:40]} 25. Rxc4 {[%clk 0:00:27]}  dxc4 {[%clk 0:00:41]} 26. d5 {[%clk 0:00:28]}  Ba4 {[%clk 0:00:39]} 27. Bc5 {[%clk 0:00:25]}  Re8 {[%clk 0:00:32]} 28. Rc1 {[%clk 0:00:19]}  c3 {[%clk 0:00:16]} 29. Rxc3 {[%clk 0:00:18]}  Bxc3 {[%clk 0:00:12]} 30. Qxc3 {[%clk 0:00:19]}  b6 {[%clk 0:00:08]} 31. Bxb6 {[%clk 0:00:16]}  Qd6 {[%clk 0:00:06]} 32. Bc5 {[%clk 0:00:13]}  Qe5 {[%clk 0:00:06]} 33. Qxe5 {[%clk 0:00:06]}  Rxe5 {[%clk 0:00:07]} 34. f4 {[%clk 0:00:05]}  Re2 {[%clk 0:00:08]} 35. Bf3 {[%clk 0:00:05]}  Rd2 {[%clk 0:00:08]} 36. Kf1 {[%clk 0:00:04]}  Bb5+ {[%clk 0:00:06]} 37. Ke1 {[%clk 0:00:04]}  Rd3 {[%clk 0:00:07]} 38. Be2 {[%clk 0:00:03]}  Rxd5 {[%clk 0:00:07]} 39. Bxb5 {[%clk 0:00:03]}  axb5 {[%clk 0:00:07]} 40. Ke2 {[%clk 0:00:03]}  f5 {[%clk 0:00:08]} 41. g5 {[%clk 0:00:03]}  Kf7 {[%clk 0:00:08]} 42. h4 {[%clk 0:00:03]}  Ke6 {[%clk 0:00:09]} 43. Ke3 {[%clk 0:00:03]}  Rd8 {[%clk 0:00:09]} 44. Bd4 {[%clk 0:00:02]}  Kd5 {[%clk 0:00:10]} 45. Be5 {[%clk 0:00:02]}  Ra8 {[%clk 0:00:10]} 46. Kd3 {[%clk 0:00:02]}  Rxa3+ {[%clk 0:00:10]} 47. Bc3 {[%clk 0:00:03]}  Rb3 {[%clk 0:00:10]} 0-1


[Site "https://www.chess.com"]

[Event "Titled Tuesday Blitz February 14 Late 2023"]
[White "reevecanada"]
[Black "Paichadze, Luka"]
[BlackFideId "13602934"]
[WhiteElo "2466"]
[BlackElo "2515"]
[Result "0-1"]
[Round "01"]
[TimeControl "180+2"]
[Date "2023.02.14"]
[WhiteClock "0:01:48"]
[BlackClock "0:01:48"]

1. e4 {[%clk 0:03:00]}  c6 {[%clk 0:02:59]} 2. c4 {[%clk 0:02:59]}  d5 {[%clk 0:02:58]} 3. cxd5 {[%clk 0:03:00]}  cxd5 {[%clk 0:02:58]} 4. exd5 {[%clk 0:03:01]}  Nf6 {[%clk 0:02:59]} 5. Nc3 {[%clk 0:03:01]}  g6 {[%clk 0:02:59]} 6. Nf3 {[%clk 0:03:01]}  Bg7 {[%clk 0:02:59]} 7. Bb5+ {[%clk 0:03:01]}  Nbd7 {[%clk 0:02:55]} 8. d6 {[%clk 0:02:57]}  exd6 {[%clk 0:02:50]} 9. Qe2+ {[%clk 0:02:56]}  Qe7 {[%clk 0:02:51]} 10. Qxe7+ {[%clk 0:02:56]}  Kxe7 {[%clk 0:02:51]} 11. O-O {[%clk 0:02:55]}  Nb6 {[%clk 0:02:51]} 12. d4 {[%clk 0:02:53]}  h6 {[%clk 0:02:49]} 13. Bf4 {[%clk 0:02:51]}  Be6 {[%clk 0:02:47]} 14. Rad1 {[%clk 0:02:46]}  Rac8 {[%clk 0:02:40]} 15. Rfe1 {[%clk 0:02:45]}  Nfd5 {[%clk 0:02:38]} 16. Bg3 {[%clk 0:02:43]}  Rxc3 {[%clk 0:02:23]} 17. bxc3 {[%clk 0:02:32]}  Nxc3 {[%clk 0:02:24]} 18. Rxe6+ {[%clk 0:02:09]}  fxe6 {[%clk 0:02:19]} 19. Rc1 {[%clk 0:02:07]}  Nxb5 {[%clk 0:02:18]} 20. a4 {[%clk 0:02:07]}  Nxd4 {[%clk 0:02:17]} 21. Rc7+ {[%clk 0:02:05]}  Nd7 {[%clk 0:02:10]} 22. Nd2 {[%clk 0:02:04]}  Rb8 {[%clk 0:01:50]} 23. Kf1 {[%clk 0:01:59]}  e5 {[%clk 0:01:49]} 24. a5 {[%clk 0:01:50]}  Ne6 {[%clk 0:01:48]} 25. Rc2 {[%clk 0:01:48]}  Ndc5 {[%clk 0:01:48]} 0-1


[Site "https://www.chess.com"]

[Event "Titled Tuesday Blitz February 14 Late 2023"]
[White "Gurevich, Dmitry"]
[Black "Remizov, Yaroslav"]
[WhiteFideId "2000407"]
[BlackFideId "34134015"]
[WhiteElo "2393"]
[BlackElo "2421"]
[Result "0-1"]
[Round "01"]
[TimeControl "180+2"]
[Date "2023.02.14"]
[WhiteClock "0:00:18"]
[BlackClock "0:01:12"]

1. Nf3 {[%clk 0:02:58]}  d5 {[%clk 0:02:59]} 2. c4 {[%clk 0:02:56]}  d4 {[%clk 0:02:59]} 3. g3 {[%clk 0:02:53]}  g6 {[%clk 0:02:58]} 4. Bg2 {[%clk 0:02:53]}  Bg7 {[%clk 0:02:58]} 5. O-O {[%clk 0:02:52]}  Nf6 {[%clk 0:02:58]} 6. b4 {[%clk 0:02:50]}  O-O {[%clk 0:02:57]} 7. d3 {[%clk 0:02:49]}  a5 {[%clk 0:02:56]} 8. b5 {[%clk 0:02:48]}  c5 {[%clk 0:02:56]} 9. a4 {[%clk 0:02:46]}  Ra7 {[%clk 0:02:56]} 10. Ra2 {[%clk 0:02:44]}  b6 {[%clk 0:02:56]} 11. e3 {[%clk 0:02:44]}  dxe3 {[%clk 0:02:53]} 12. Bxe3 {[%clk 0:02:44]}  Bf5 {[%clk 0:02:50]} 13. Rd2 {[%clk 0:02:42]}  Ng4 {[%clk 0:02:44]} 14. Bf4 {[%clk 0:02:37]}  e5 {[%clk 0:02:43]} 15. Bg5 {[%clk 0:02:34]}  f6 {[%clk 0:02:43]} 16. Be3 {[%clk 0:02:34]}  Rd7 {[%clk 0:02:43]} 17. Ne1 {[%clk 0:02:23]}  h5 {[%clk 0:02:19]} 18. Nc3 {[%clk 0:02:18]}  Rd6 {[%clk 0:02:06]} 19. Bd5+ {[%clk 0:02:07]}  Kh7 {[%clk 0:02:05]} 20. Ne4 {[%clk 0:02:06]}  Rxd5 {[%clk 0:02:03]} 21. cxd5 {[%clk 0:02:05]}  Qxd5 {[%clk 0:02:04]} 22. Nc3 {[%clk 0:01:54]}  Qe6 {[%clk 0:01:58]} 23. Qf3 {[%clk 0:01:49]}  Rd8 {[%clk 0:01:53]} 24. Ne4 {[%clk 0:01:47]}  Nd7 {[%clk 0:01:45]} 25. Ng2 {[%clk 0:01:46]}  Nxh2 {[%clk 0:01:29]} 26. Kxh2 {[%clk 0:01:38]}  Bg4 {[%clk 0:01:30]} 27. Ng5+ {[%clk 0:01:18]}  fxg5 {[%clk 0:01:30]} 28. Qc6 {[%clk 0:01:18]}  Nf6 {[%clk 0:01:28]} 29. Bxg5 {[%clk 0:01:14]}  Rd6 {[%clk 0:01:26]} 30. Qc7 {[%clk 0:01:11]}  Bf3 {[%clk 0:01:23]} 31. Bxf6 {[%clk 0:01:10]}  Qxf6 {[%clk 0:01:24]} 32. Re1 {[%clk 0:01:04]}  e4 {[%clk 0:01:21]} 33. Nh4 {[%clk 0:00:53]}  Rxd3 {[%clk 0:01:20]} 34. Rxd3 {[%clk 0:00:43]}  exd3 {[%clk 0:01:21]} 35. Qd7 {[%clk 0:00:41]}  c4 {[%clk 0:01:14]} 36. Re7 {[%clk 0:00:37]}  Bg4 {[%clk 0:01:13]} 37. Qc7 {[%clk 0:00:18]}  d2 {[%clk 0:01:12]} 0-1


[Site "https://www.chess.com"]

[Event "Titled Tuesday Blitz February 14 Late 2023"]
[White "Buchenau, Frank"]
[Black "Boros, Denes"]
[WhiteFideId "4604350"]
[BlackFideId "722340"]
[WhiteElo "2222"]
[BlackElo "2406"]
[Result "0-1"]
[Round "01"]
[TimeControl "180+2"]
[Date "2023.02.14"]
[WhiteClock "0:00:04"]
[BlackClock "0:00:12"]

1. e4 {[%clk 0:03:00]}  g6 {[%clk 0:03:00]} 2. d4 {[%clk 0:03:00]}  d5 {[%clk 0:03:01]} 3. exd5 {[%clk 0:02:58]}  Qxd5 {[%clk 0:03:02]} 4. Nc3 {[%clk 0:02:57]}  Qd8 {[%clk 0:03:01]} 5. Nf3 {[%clk 0:02:57]}  Bg7 {[%clk 0:03:02]} 6. Bc4 {[%clk 0:02:55]}  a6 {[%clk 0:02:59]} 7. Be3 {[%clk 0:02:54]}  Nf6 {[%clk 0:02:51]} 8. Qd2 {[%clk 0:02:48]}  b5 {[%clk 0:02:46]} 9. Bb3 {[%clk 0:02:41]}  Nc6 {[%clk 0:02:41]} 10. O-O-O {[%clk 0:02:36]}  Na5 {[%clk 0:02:41]} 11. Bh6 {[%clk 0:02:21]}  O-O {[%clk 0:02:41]} 12. Bxg7 {[%clk 0:02:13]}  Kxg7 {[%clk 0:02:42]} 13. Ne5 {[%clk 0:02:03]}  Bb7 {[%clk 0:02:27]} 14. Qg5 {[%clk 0:01:56]}  e6 {[%clk 0:02:20]} 15. Qg3 {[%clk 0:01:34]}  Qd6 {[%clk 0:01:44]} 16. h4 {[%clk 0:01:19]}  b4 {[%clk 0:01:32]} 17. Na4 {[%clk 0:01:15]}  Nxb3+ {[%clk 0:01:30]} 18. axb3 {[%clk 0:01:14]}  h5 {[%clk 0:01:18]} 19. Nc5 {[%clk 0:01:14]}  Bd5 {[%clk 0:01:16]} 20. Kb1 {[%clk 0:01:02]}  a5 {[%clk 0:01:16]} 21. f3 {[%clk 0:00:53]}  Ra7 {[%clk 0:01:01]} 22. Rhe1 {[%clk 0:00:45]}  a4 {[%clk 0:01:00]} 23. Nxa4 {[%clk 0:00:43]}  Rfa8 {[%clk 0:00:58]} 24. Qf2 {[%clk 0:00:26]}  Nd7 {[%clk 0:00:50]} 25. Nd3 {[%clk 0:00:20]}  Bc6 {[%clk 0:00:46]} 26. Ndc5 {[%clk 0:00:19]}  Ra5 {[%clk 0:00:41]} 27. Qe3 {[%clk 0:00:18]}  Bxa4 {[%clk 0:00:32]} 28. Nxa4 {[%clk 0:00:17]}  Nb6 {[%clk 0:00:33]} 29. g4 {[%clk 0:00:13]}  Qc6 {[%clk 0:00:22]} 30. Kc1 {[%clk 0:00:10]}  Rxa4 {[%clk 0:00:12]} 31. bxa4 {[%clk 0:00:11]}  Nc4 {[%clk 0:00:13]} 32. Qb3 {[%clk 0:00:09]}  Rxa4 {[%clk 0:00:14]} 33. c3 {[%clk 0:00:08]}  Na5 {[%clk 0:00:12]} 34. Qc2 {[%clk 0:00:07]}  bxc3 {[%clk 0:00:12]} 35. bxc3 {[%clk 0:00:07]}  Qc4 {[%clk 0:00:13]} 36. Qe2 {[%clk 0:00:04]}  Ra1+ {[%clk 0:00:12]} 37. Kb2 {[%clk 0:00:04]}  Qa2# {[%clk 0:00:12]} 0-1


[Site "https://www.chess.com"]